Workbook

Sheet Detail
D3: Example CapTable Modelling tool
E4: by FounderCatalyst.com
C9: Bootstrap | D9: F&F | E9: Pre-Seed | F9: Seed | G9: Series A | H9: Series B | I9: Series C | J9: Exit
B10: Pre Money Valuation | D10: £800,000 | E10: £1,400,000 | F10: £2,500,000 | G10: £4,000,000 | H10: £10,000,000 | I10: £25,000,000 | J10: £40,000,000
B11: Investment | D11: £50,000 | E11: £200,000 | F11: £500,000 | G11: £900,000 | H11: £2,100,000 | I11: £6,000,000
B12: Year invested (required for IRR) | D12: 2 | E12: 3 | F12: 4 | G12: 5 | H12: 6 | I12: 7 | J12: 8
B13: Post Money Valuation | D13: =D10+D11 -> £850,000 | E13: =E10+E11 -> £1,600,000 | F13: =F10+F11 -> £3,000,000 | G13: £4,900,000 | H13: £12,100,000 | I13: £31,000,000
B14: Equity allocated in round | D14: =D11/D13 -> 6% | E14: =E11/E13 -> 13% | F14: =F11/F13 -> 17% | G14: 18% | H14: 17% | I14: 19%
B15: Post round Founder(s) % | C15: 100% | D15: =$C$18/(D22) -> 94% | E15: =$C$18/(E22) -> 74% | F15: 62% | G15: 50% | H15: 42% | I15: 34%
B16: Post round investors % | D16: =(D22-$C$18-D21)/D22 -> 6% | E16: =(E22-$C$18-E21)/E22 -> 16% | F16: 30% | G16: 43% | H16: 53% | I16: 62%
B17: Employee Share Option Plan % | D17: =(D21)/D22 -> 0% | E17: =(E21)/E22 -> 10% | F17: =(F21)/F22 -> 8% | G17: 7% | H17: 6% | I17: 4%
B18: Founder shares upon incorporation | C18: 10,000,000
B19: Shares pre-round | D19: =C22 -> 10,000,000 | E19: =D22 -> 10,625,000 | F19: 13,478,571 | G19: =F22 -> 16,174,286 | H19: 19,813,500 | I19: 23,974,335
B20: Shares issued in round | D20: =(D11/D10)*D19 -> 625,000 | E20: 1,517,857 | F20: 2,695,714 | G20: 3,639,214 | H20: 4,160,835 | I20: 5,753,840
B21: Aggregate Employee option Pool | D21: 0 | E21: =(E19+E20)*1.1/10 -> 1,335,714 | F21: =E21 -> 1,335,714 | G21: =F21 -> 1,335,714 | H21: 1,335,714 | I21: 1,335,714
B22: Shares post round | C22: =C18 -> 10,000,000 | D22: =D19+D20+D21 -> 10,625,000 | E22: =E19+E20+(E21-D21) -> 13,478,571 | F22: =F19+F20+(F21-E21) -> 16,174,286 | G22: 19,813,500 | H22: 23,974,335 | I22: 29,728,175
C25: Founders | D25: =D9 -> F&F | E25: =E9 -> Pre-Seed | F25: Seed | G25: Series A | H25: Series B | I25: Series C | J25: ESOP
B26: Return on exit by stage: | C26: =$J$10/$I$22*C18 -> £13,455,249 | D26: =$J$10/$I$22*D20 -> £840,953 | E26: =$J$10/$I$22*E20 -> £2,042,315 | F26: =$J$10/$I$22*F20 -> £3,627,151 | G26: £4,896,653 | H26: £5,598,507 | I26: £7,741,935 | J26: =$J$10/$I$22*I21 -> £1,797,237
B27: Internal rate of return (IRR): | D27: =((D26/D11)^(1/($J$12-D12))-1) -> 60% | E27: 59% | F27: 64% | G27: 76% | H27: 63% | I27: 29%
B28: Total return on investment: | D28: =TRUNC(D26/D11*100)/100&"x" -> 16.81x | E28: 10.21x | F28: 7.25x | G28: 5.44x | H28: 2.66x | I28: 1.29x

Sheet Graph
D3: Example CapTable Modelling tool
E4: by FounderCatalyst.com
C8: Investor Ownership at stage
B9: Investor type | C9: =Detail!C9 -> Bootstrap | D9: =Detail!D9 -> F&F | E9: =Detail!E9 -> Pre-Seed | F9: =Detail!F9 -> Seed | G9: =Detail!G9 -> Series A | H9: =Detail!H9 -> Series B | I9: =Detail!I9 -> Series C
B10: Series C Investors | C10: 0% | D10: 0% | E10: 0% | F10: 0% | G10: 0% | H10: 0% | I10: =Detail!$I$20/Detail!I22 -> 19%
B11: Series B Investors | C11: 0% | D11: 0% | E11: 0% | F11: 0% | G11: 0% | H11: =Detail!$H$20/Detail!H22 -> 17% | I11: =Detail!$H$20/Detail!I22 -> 14%
B12: Series A Investors | C12: 0% | D12: 0% | E12: 0% | F12: 0% | G12: =Detail!$G$20/Detail!G22 -> 18% | H12: =Detail!$G$20/Detail!H22 -> 15% | I12: =Detail!$G$20/Detail!I22 -> 12%
B13: Seed Investors | C13: 0% | D13: 0% | E13: 0% | F13: =Detail!$F$20/Detail!F22 -> 17% | G13: =Detail!$F$20/Detail!G22 -> 14% | H13: =Detail!$F$20/Detail!H22 -> 11% | I13: =Detail!$F$20/Detail!I22 -> 9%
B14: Pre-seed Investors | C14: 0% | D14: 0% | E14: =Detail!$E$20/Detail!E22 -> 11% | F14: =Detail!$E$20/Detail!F22 -> 9% | G14: =Detail!$E$20/Detail!G22 -> 8% | H14: =Detail!$E$20/Detail!H22 -> 6% | I14: =Detail!$E$20/Detail!I22 -> 5%
B15: F&F Investors | C15: 0% | D15: =Detail!$D$20/Detail!D22 -> 6% | E15: =Detail!$D$20/Detail!E22 -> 5% | F15: =Detail!$D$20/Detail!F22 -> 4% | G15: =Detail!$D$20/Detail!G22 -> 3% | H15: =Detail!$D$20/Detail!H22 -> 3% | I15: =Detail!$D$20/Detail!I22 -> 2%
B16: Employee Shares | C16: 0% | D16: =Detail!D21/Detail!D22 -> 0% | E16: =Detail!E21/Detail!E22 -> 10% | F16: =Detail!F21/Detail!F22 -> 8% | G16: =Detail!G21/Detail!G22 -> 7% | H16: =Detail!H21/Detail!H22 -> 6% | I16: =Detail!I21/Detail!I22 -> 4%
B17: Founders | C17: =Detail!$C$18/Detail!C22 -> 100% | D17: =Detail!$C$18/Detail!D22 -> 94% | E17: =Detail!$C$18/Detail!E22 -> 74% | F17: =Detail!$C$18/Detail!F22 -> 62% | G17: =Detail!$C$18/Detail!G22 -> 50% | H17: =Detail!$C$18/Detail!H22 -> 42% | I17: =Detail!$C$18/Detail!I22 -> 34%
B18: Total | C18: =SUM(C10:C17) -> 100% | D18: =SUM(D10:D17) -> 100% | E18: =SUM(E10:E17) -> 100% | F18: =SUM(F10:F17) -> 100% | G18: =SUM(G10:G17) -> 100% | H18: =SUM(H10:H17) -> 100% | I18: =SUM(I10:I17) -> 100%

Sheet Notes
D3: Example CapTable Modelling tool
E4: by FounderCatalyst.com
B7: Notes:
A8: Link | B8: Ignores the potential impact of liquidation preferences (which can be extreme - see link)
A9: Link | B9: Ignores the benefits of (S)EIS
A10: Link | B10: Doesn't take into account debt free / cash free calculations
A11: Link | B11: Doesn't take into account working capital requirements
A12: Link | B12: For more information on IRR see link
B13: Returns are gross
B14: Assumes 100% of Employee Share Options are allocated to employees at the time of exit
B15: This sheet is provided on an 'as is' basis. It may contain calculation issues and may not be a perfect fit for your use case.
B16: This sheet doesn't constitute 'advice'.
